Cogmind - Beta 11 X4 @@@ ROGUE MODE // 2021.05.19 @ 18:03:54 Player: aoemica Result: Escaped singularity! Performance ------------- Evolutions (9) 4500 Regions Visited (32) 6400 Robots Destroyed (202) 1010 Value Destroyed (7831) 7831 Prototype IDs (117) 2340 Alien Tech Used (5) 1000 Bonus (42800) 42800 TOTAL SCORE: 65881 Bonus ------- Triggered Max Security 1000 High Alert Combat Kills 346 Follower Combat Kills 504 Aligned with FarCom 300 Met Data Miner 300 Met Imprinter 300 Met Zhirov 300 Met Warlord at Base 500 MAIN.C Attacked Warlord 500 Met Warlord at Research 2000 Acquired SGEMP 2000 Delivered SGEMP 2000 Destroyed MAIN.C Guards 500 Met MAIN.C 5000 Destroyed MAIN.C Shell 5000 Zhirov Destroyed MAIN.C 3000 Met Architect 300 Destroyed A8 300 Destroyed A6 400 Destroyed A5 500 Destroyed Architect 15000 Win 3000 Friendly Fire -250 Cogmind --------- Core Integrity 573/1600 Matter 290/300 Energy 99/100 System Corruption 1% Temperature Cool (0) Movement Core (50) Location Near Former Tau Ceti IV Parts ------- > --- POWER (3) -------- (None) > --- PROPULSION (6) --- (None) > --- UTILITY (13) ----- (None) > --- WEAPON (4) ------- (None) > --- INVENTORY (5) ---- Experimental Energy Well (600) Experimental Matter Compressor (20) Experimental Terrain Scanner Advanced Terrain Scan Processor Experimental Targeting Computer Peak State ------------ > --- POWER ------------ Improved Quantum Reactor Vortex Chain Reactor > --- PROPULSION ------- Experimental Biometal Heavy Treads Experimental Biometal Heavy Treads Enhanced Armored Heavy Treads > --- UTILITY ---------- Experimental Heat Sink Huge Storage Unit Experimental Optical Array Experimental Targeting Computer Experimental Targeting Computer Experimental Target Analyzer Advanced Armor Integrity Analyzer Advanced Kinecellerator Advanced Weapon Cycler Experimental Powered Armor Heavy Regenerative Plating AEGIS Remote Shield > --- WEAPON ----------- Multirail Multirail Multirail Multirail > --- INVENTORY -------- Vortex Chain Reactor Experimental Biometal Heavy Treads Experimental Energy Well Experimental Matter Compressor Experimental Matter Compressor Experimental Matter Compressor Experimental Terrain Scanner Advanced Terrain Scan Processor Experimental Targeting Computer Advanced Kinecellerator Experimental Powered Armor Advanced Force Field Long-range Tractor Beam Mini Drone Bay Transdimensional Reconstructor Cooled Nova Cannon Heavy Flak Cannon Heavy Flak Cannon Heavy Flak Cannon Heavy Flak Cannon Heavy Flak Cannon Heavy Flak Cannon Heavy Flak Cannon [Rating: 258] Favorites ----------- Power Vortex Chain Reactor Engine Ion Engine Power Core Micro Fission Core Reactor Vortex Chain Reactor Propulsion Aerolev Unit Treads Advanced Medium Treads Leg Aluminum Leg Wheel Armored Wheel Hover Unit Aerolev Unit Utility Advanced Terrain Scan Processor Device Advanced Weapon Cycler Storage Large Storage Unit Processor Advanced Terrain Scan Processor Hackware Hacking Suite Protection Improved Utility Shielding Weapon Heavy Flak Cannon Energy Gun Cooled Pulse Rifle Energy Cannon Beam Cannon Ballistic Gun Multirail Ballistic Cannon Heavy Flak Cannon Launcher Improved Grenade Launcher Special Weapon Plasma Cutter Impact Weapon Heavy Mace Slashing Weapon Scythe Piercing Weapon CR-A16's Behemoth Slayer Build | -11 -10 -10 -10 -9 -8 -8 -7 -7 -7 -7 -6 -6 -6 -6 -6 -5 -5 -5 -5 -5 -4 -4 -4 -4 -4 -3 -3 -3 -2 -1 -1 -1 ------- Run | Scr Mat Min Exi Min Mat Sto Fac Low Low Dat Pro Fac Low Low Zio Pro Fac Upp Upp War Pro Fac Upp Upp Zhi Pro Res Tes Res Acc Com Ac0 Slots Evolved 18 | . . . . . 4 . 2 . . . . 2 . . . . 2 . . . . 2 . . . . 2 . 2 2 . . Power 1 | . . . . . . . . . . . . . . . . . . . . . . . . . . . . . . 1 . . Propulsion 4 | . . . . . 1 . 1 . . . . 1 . . . . . . . . . 1 . . . . . . . . . . Utility 11 | . . . . . 3 . 1 . . . . 1 . . . . 2 . . . . 1 . . . . 1 . 2 . . . Weapon 2 | . . . . . . . . . . . . . . . . . . . . . . . . . . . 1 . . 1 . . Parts Attached 489 | . 14 5 6 4 33 17 21 2 . 1 1 15 4 5 7 . 30 1 . 16 . 13 1 2 11 . 11 1 15 10 159 84 Power 39 | . 1 1 . 1 2 5 2 . . . . 2 . . . . 1 . . 4 . 2 . . 2 . . . . . 13 3 Engine 7 | . 1 1 . 1 1 3 . . . . . . . . . . . . . . . . . . . . . . . . . . Core 12 | . . . . . 1 . 2 . . . . 2 . . . . 1 . . 3 . 2 . . 1 . . . . . . . Reactor 20 | . . . . . . 2 . . . . . . . . . . . . . 1 . . . . 1 . . . . . 13 3 Propulsion 75 | . 3 2 5 . 8 2 6 . . 1 . 4 . . . . 1 . . 2 . 1 . . 3 . . 1 1 3 31 1 Treads 22 | . 3 2 1 . 5 1 1 . . . . . . . . . . . . . . . . . . . . . . . 8 1 Leg 4 | . . . 3 . . . . . . . . . . . . . . . . . . . . . . . . . . . 1 . Wheel 4 | . . . 1 . 3 . . . . . . . . . . . . . . . . . . . . . . . . . . . Hover 45 | . . . . . . 1 5 . . 1 . 4 . . . . 1 . . 2 . 1 . . 3 . . 1 1 3 22 . Flight . | . . . . . . . . . . . . . . . . . . . . . . . . . . . . . . . . . Utility 224 | . 4 1 1 3 8 4 10 1 . . 1 5 1 1 5 . 19 1 . 5 . 7 1 2 5 . 8 . 7 3 69 52 Device 135 | . 2 1 . 2 4 1 1 . . . . 2 1 . 2 . 12 1 . 3 . 7 1 2 1 . 5 . 4 3 37 43 Storage 17 | . 2 . 1 . . 1 2 . . . . . . . . . . . . 1 . . . . 1 . 2 . . . 5 2 Processor 21 | . . . . . . . 4 . . . . 2 . . 1 . 1 . . 1 . . . . . . . . 2 . 9 1 Hackware 1 | . . . . . 1 . . . . . . . . . . . . . . . . . . . . . . . . . . . Protection 50 | . . . . 1 3 2 3 1 . . 1 1 . 1 2 . 6 . . . . . . . 3 . 1 . 1 . 18 6 Artifact . | . . . . . . . . . . . . . . . . . . . . . . . . . . . . . . . . . Weapon 151 | . 6 1 . . 15 6 3 1 . . . 4 3 4 2 . 9 . . 5 . 3 . . 1 . 3 . 7 4 46 28 Energy Gun 6 | . 1 . . . 1 . 1 . . . . . . . . . . . . 1 . . . . . . . . . . 2 . Energy Cannon 25 | . 1 . . . 1 1 . . . . . . . . . . 4 . . . . 2 . . . . 2 . 3 1 5 5 Ballistic Gun 32 | . 4 . . . 8 4 . . . . . . . . . . . . . . . . . . . . . . . . 8 8 Ballistic Cannon 28 | . . 1 . . 1 . . . . . . . . . . . . . . . . . . . . . . . . . 11 15 Launcher 9 | . . . . . 3 1 . 1 . . . . . . 1 . . . . 1 . . . . . . . . . . 2 . Special Weapon 19 | . . . . . 1 . . . . . . . 1 1 . . . . . . . . . . . . . . 3 2 11 . Impact Weapon 1 | . . . . . . . 1 . . . . . . . . . . . . . . . . . . . . . . . . . Slashing Weapon 7 | . . . . . . . 1 . . . . 3 1 2 . . . . . . . . . . . . . . . . . . Piercing Weapon 24 | . . . . . . . . . . . . 1 1 1 1 . 5 . . 3 . 1 . . 1 . 1 . 1 1 7 . Special Melee Weapon . | . . . . . . . . . . . . . . . . . . . . . . . . . . . . . . . . . Unidentified Prototypes 60 | . . . . 1 2 3 . 1 . . . . 1 . 1 . . 1 . 8 . . . . 5 . . . 1 . 33 3 Parts Lost 49 | . 1 5 . . 2 1 . . . 1 . . . . . . . . . . . . . . . . . . . 2 17 20 Power 6 | . . 1 . . 1 . . . . . . . . . . . . . . . . . . . . . . . . . 2 2 Propulsion 14 | . . 2 . . 1 . . . . 1 . . . . . . . . . . . . . . . . . . . . 7 3 Utility 17 | . 1 1 . . . 1 . . . . . . . . . . . . . . . . . . . . . . . 1 6 7 Weapon 12 | . . 1 . . . . . . . . . . . . . . . . . . . . . . . . . . . 1 2 8 Highest Loss Streak 16 | . 1 2 . . 1 1 . . . 1 . . . . . . . . . . . . . . . . . . . 1 16 5 Average Slot Usage (%) 89 | . 97 96 99 100 93 98 97 92 92 92 92 96 99 97 97 100 99 100 100 99 100 99 100 100 100 100 94 95 97 94 80 78 Engine 2 | . 14 14 14 14 5 3 . . . . . . . . . . . . . . . . . . . . . . . . . . Core 3 | . . . . . 3 . 6 7 7 7 7 9 12 12 12 12 11 11 11 11 11 10 10 10 9 10 9 9 8 7 . . Reactor 3 | . . . . . . 6 . . . . . . . . . . . . . . . . . . . . . . . . 6 6 Treads 8 | . 17 28 23 14 17 17 . . . . . . . . . . . . . . . . . . . . . . . . 9 9 Wheel 1 | . . . 4 14 9 9 . . . . . . . . . . . . . . . . . . . . . . . . . . Hover 12 | . . . . . . . 29 28 28 28 28 31 31 31 31 31 27 27 27 27 27 30 30 30 30 30 27 27 25 23 8 . Device 12 | . 12 10 14 2 14 17 11 7 7 7 7 12 12 12 11 12 21 16 16 15 16 19 20 20 21 25 26 27 28 27 8 14 Storage 5 | . 14 14 14 14 9 12 7 7 7 7 7 6 6 6 6 6 5 5 5 5 5 5 5 5 5 5 4 4 4 3 3 3 Processor 14 | . . . . . . . 17 21 21 21 21 18 18 18 18 18 16 16 16 16 16 15 15 15 13 10 9 9 11 11 20 18 Protection 7 | . . . . 11 12 8 7 6 7 7 7 6 6 6 6 6 5 11 11 11 11 10 10 10 9 10 8 9 8 4 9 6 Ballistic Gun 3 | . 18 14 14 14 15 17 . . . . . . . . . . . . . . . . . . . . . . . . 1 1 Ballistic Cannon 3 | . . 9 14 14 1 . . . . . . . . . . . . . . . . . . . . . . . . . 4 12 Piercing Weapon 4 | . . . . . . . . . . . . 4 5 3 3 6 10 11 11 10 11 7 5 5 7 10 8 9 8 10 4 . Naked Turns 7 | . . . . . . . . . . . . . . . . . . . . . . . . . . . . . . . . 7 Heaviest Build 224 | 10 32 32 52 54 71 73 72 32 32 32 32 40 40 36 41 39 44 39 39 39 39 48 45 52 52 45 56 49 65 68 217 224 Greatest Support 250 | 20 40 40 40 16 26 12 32 32 32 32 32 40 40 40 40 40 40 40 40 45 45 54 54 54 63 63 63 80 66 72 250 250 Greatest Overweight (x) 24 | . . . 3 3 5 23 5 . . . . . . . 1 . 1 . . . . . . . . . . . 1 . 24 2 Average Overweight (x) . | . . . . 3 4 5 . . . . . . . . . . . . . . . . . . . . . . . . . . Largest Inventory Capacity 25 | . 15 15 20 20 20 20 20 10 10 10 10 10 10 10 10 10 10 10 10 10 10 10 10 10 10 10 15 15 15 15 25 25 Average Capacity 17 | . 11 15 16 20 20 20 10 10 10 10 10 10 10 10 10 10 10 10 10 10 10 10 10 10 10 10 14 15 15 15 20 24 Most Carried 25 | . 15 15 17 20 20 20 20 10 10 10 10 10 10 10 10 10 10 10 10 10 10 10 10 10 10 10 15 15 15 15 25 25 Average Carried 15 | . 10 13 14 19 19 19 9 9 10 8 9 9 9 9 9 10 9 10 10 9 10 9 10 10 9 10 13 14 15 14 17 21 Final Capacity 25 | 8 15 15 20 20 20 20 10 10 10 10 10 10 10 10 10 10 10 10 10 10 10 10 10 10 10 10 15 15 15 15 25 5 Final Carried 25 | 6 15 14 17 20 20 20 10 10 10 9 10 10 10 10 10 10 10 10 10 10 10 10 10 10 10 10 15 15 15 15 25 5 Class Distribution -------------------- 25% | Scavenger-Mutant 18% | Mutant 14% | Ninja 12% | Scout 10% | Scavenger-Gunner 4% | Skirmisher Dominant Class ---------------- Mutant | -10/Materials Mutant | -10/Mines Mutant | -10/Exiles Mutant | -9/Mines Scavenger-Skirmisher | -8/Materials Skirmisher | -8/Storage Scout | -7/Factory Mutant | -7/Lower Caves Mutant | -7/Lower Caves Mutant | -7/Data Miner Mutant | -6/Proximity Caves Ninja | -6/Factory Scout | -6/Lower Caves Scout | -6/Lower Caves Scout | -6/Zion Scout | -5/Proximity Caves Ninja | -5/Factory Scout | -5/Upper Caves Scout | -5/Upper Caves Scout | -5/Warlord Scout | -4/Proximity Caves Ninja | -4/Factory Ninja | -4/Upper Caves Ninja | -4/Upper Caves Ninja | -4/Zhirov Ninja | -3/Proximity Caves Ninja | -3/Research Ninja | -3/Testing Ninja | -2/Research Generator-Ninja | -1/Access Scavenger-Mutant | -1/Command Scavenger-Gunner | -1/Access_0 Resources | -11 -10 -10 -10 -9 -8 -8 -7 -7 -7 -7 -6 -6 -6 -6 -6 -5 -5 -5 -5 -5 -4 -4 -4 -4 -4 -3 -3 -3 -2 -1 -1 -1 ----------- Run | Scr Mat Min Exi Min Mat Sto Fac Low Low Dat Pro Fac Low Low Zio Pro Fac Upp Upp War Pro Fac Upp Upp Zhi Pro Res Tes Res Acc Com Ac0 Matter Collected 15580 | 200 406 312 74 166 953 492 140 30 . . 20 139 58 73 70 . 300 20 . 160 . 110 10 40 120 . 110 . 150 60 4585 6782 Remotely 4468 | . . . . . . . . . . . . . . . . . . . . . . . . . . . . . . . 943 3525 Salvage Created 19515 | . 643 405 . 161 1667 603 285 . . . 53 55 . . . 93 902 . . . . 817 . . 341 102 1441 . 1176 270 9387 1114 Parts 951 | . 41 22 . 5 93 41 3 . . . 4 2 . . . 2 28 . . . . 37 . . 3 5 42 . 47 10 538 28 Haulers Intercepted 25 | . 2 . . . 4 4 2 . . . . . . . . . 3 . . . . 1 . . . . 4 . 4 1 . . Recyclers Shooed 7 | . 1 . . 1 2 . . . . . . . . . . . 1 . . . . . . . . . 2 . . . . . Parts Field Recycled . | . . . . . . . . . . . . . . . . . . . . . . . . . . . . . . . . . Retrieved Matter . | . . . . . . . . . . . . . . . . . . . . . . . . . . . . . . . . . Parts Self-Destructed 92 | . . . . . . . . 1 . . 4 . 8 . . 6 . . . 66 . . . 1 2 4 . . . . . . Prevented 15 | . . . . . . . . . . . . . . . . . . . . 13 . . . 2 . . . . . . . . Kills | -11 -10 -10 -10 -9 -8 -8 -7 -7 -7 -7 -6 -6 -6 -6 -6 -5 -5 -5 -5 -5 -4 -4 -4 -4 -4 -3 -3 -3 -2 -1 -1 -1 ------- Run | Scr Mat Min Exi Min Mat Sto Fac Low Low Dat Pro Fac Low Low Zio Pro Fac Upp Upp War Pro Fac Upp Upp Zhi Pro Res Tes Res Acc Com Ac0 Combat Hostiles Destroyed 107 | . 13 19 . 2 21 9 . . . . 1 . . . . 1 2 . . . . 2 . . . 1 3 . 2 1 6 24 Melee 11 | . . . . . . . . . . . 1 . . . . . 1 . . . . 1 . . . . 1 . . 1 6 . Guns 38 | . 6 3 . 1 15 7 . . . . . . . . . . . . . . . . . . . . . . . . . 6 Cannons 45 | . 7 16 . 1 3 . . . . . . . . . . . . . . . . . . . . . . . . . . 18 AOE 5 | . . . . . 3 2 . . . . . . . . . . . . . . . . . . . . . . . . . . Classes Destroyed 16 | . 6 1 . 1 5 . . . . . 1 1 . . . 1 . . . . . . . . . . . . . . . . Worker 14 | . . . . . 3 . 2 . . . . 1 . . . . 3 . . . . 4 . . . . 1 . . . . . Builder 6 | . . . . . 1 . 3 . . . . . . . . . 1 . . . . . . . . . 1 . . . . . Tunneler 1 | . . . . . . . . . . . . 1 . . . . . . . . . . . . . . . . . . . . Hauler 25 | . 2 . . . 4 4 2 . . . . . . . . . 3 . . . . 1 . . . . 4 . 4 1 . . Recycler 23 | . 1 1 . 1 5 1 . . . . . . . . . . 2 . . . . 2 . . . . 5 . 3 . 2 . Mechanic 1 | . . . . . 1 . . . . . . . . . . . . . . . . . . . . . . . . . . . Operator 4 | . 1 . . . . . 1 . . . . . . . . . 1 . . . . . . . . . . . 1 . . . Watcher 26 | . 3 . . . 4 1 1 . . . . . . . . . 2 . . . . 6 . . . . 2 . 4 2 1 . Swarmer 24 | . 6 9 . . 4 4 . . . . . . . . . . . . . . . 1 . . . . . . . . . . Grunt 25 | . 7 4 . 1 8 3 . . . . . . . . . . . . . . . . . . . . 1 . . 1 . . Brawler 1 | . . . . 1 . . . . . . . . . . . . . . . . . . . . . . . . . . . . Sentry 9 | . . . . . 6 2 . . . . . . . . . . 1 . . . . . . . . . . . . . . . Hunter 4 | . . . . . 3 . . . . . . . . . . . . . . . . . . . . . . . . . 1 . Programmer 6 | . . . . . . . . . . . 1 . . . . . . . . . . . . . . . . . . . 5 . Behemoth 8 | . . . . . . . . . . . . . . . . 1 1 . . . . 1 . . . 1 2 . 2 . . . Enhanced Grunt 13 | . . . . . . . . . . . . . . . . . . . . . . . . . . . . . . . . 13 Enhanced Hunter 7 | . . . . . . . . . . . . . . . . . . . . . . . . . . . . . . . . 7 Assembled 6 | . . 6 . . . . . . . . . . . . . . . . . . . . . . . . . . . . . . Best Kill Streak 7 | . 4 7 . 2 6 4 3 . . . 1 1 . . . 1 2 . . . . 3 . . . 1 3 . 6 1 3 7 Combat Bots Only 7 | . 3 6 . 2 5 4 . . . . 1 . . . . 1 1 . . . . 1 . . . 1 1 . 1 1 3 7 Max Kills in Single Turn 2 | . 1 1 . 1 2 2 1 . . . 1 1 . . . 1 1 . . . . 1 . . . 1 1 . 1 1 1 1 Gunslinging . | . . . . . . . . . . . . . . . . . . . . . . . . . . . . . . . . . Exploded 2 | . . . . . 2 2 . . . . . . . . . . . . . . . . . . . . . . . . . . Melee 1 | . . . . . . . . . . . 1 . . . . . 1 . . . . 1 . . . . 1 . . 1 1 . Uniques/NPCs Destroyed 5 | . . . . . . . . . . . . . . . . . . . . . . . . . . . . . . . 1 4 MAIN.C Shell (-1/Command) A8 (-1/Access_0) A6 (-1/Access_0) A5 (-1/Access_0) Architect (-1/Access_0) Combat | -11 -10 -10 -10 -9 -8 -8 -7 -7 -7 -7 -6 -6 -6 -6 -6 -5 -5 -5 -5 -5 -4 -4 -4 -4 -4 -3 -3 -3 -2 -1 -1 -1 -------- Run | Scr Mat Min Exi Min Mat Sto Fac Low Low Dat Pro Fac Low Low Zio Pro Fac Upp Upp War Pro Fac Upp Upp Zhi Pro Res Tes Res Acc Com Ac0 Damage Taken 18011 | . 408 737 . 57 871 316 72 21 . 231 238 43 . . . 19 73 . . . . 116 41 . . . 195 475 90 176 2807 11025 Core 1284 | . 53 83 . 11 14 21 11 . . 45 60 . . . . . 50 . . . . . . . . . 28 20 . 17 278 593 Absorbed by Shields 8377 | . . . . . . . . . . . . . . . . . . . . . . . . . . . . . 32 65 355 7925 Reduced by Siege Mode 512 | . . . . . . . . . . . . . . . . . . . . . . . . . . . . . . . . 512 Core Remaining (%) 84 | 100 . . . 41 . 93 . . . . 83 . . . . 100 . . . . 95 . . . . 100 . 96 100 . . 35 Volleys Fired 1025 | . 56 46 . 10 95 38 3 . . . . . 2 4 . . 6 . . . . 9 6 2 . . 3 . 7 1 464 273 Largest 4 | . 2 2 . 2 2 2 1 . . . . . 1 1 . . 1 . . . . 1 1 1 . . 1 . 1 1 4 4 Hottest 236 | . 125 83 . 58 95 53 20 . . . . . . . . . 98 . . . . 98 98 98 . . 113 . 113 120 212 236 Shots Fired 1804 | . 112 92 . 20 182 71 3 . . . . . 2 4 . . 6 . . . . 9 6 2 . . 3 . 7 1 510 774 Gun 494 | . 83 46 . 10 150 70 3 . . . . . . . . . . . . . . . . . . . . . . . 19 113 Cannon 880 | . 29 46 . 10 27 . . . . . . . . . . . 6 . . . . 9 6 2 . . 3 . 7 1 73 661 Launcher 5 | . . . . . 4 1 . . . . . . . . . . . . . . . . . . . . . . . . . . Special 425 | . . . . . 1 . . . . . . . 2 4 . . . . . . . . . . . . . . . . 418 . Kinetic 1242 | . 81 76 . 20 164 70 . . . . . . . . . . . . . . . . . . . . . . . . 76 755 Thermal 535 | . 31 16 . . 14 . 3 . . . . . . . . . 6 . . . . 9 6 2 . . 3 . 7 1 418 19 Explosive 5 | . . . . . 4 1 . . . . . . . . . . . . . . . . . . . . . . . . . . Electromagnetic 7 | . . . . . . . . . . . . . . . . . . . . . . . . . . . . . . . 7 . Robot Hit Streak 86 | . 13 6 . 7 24 9 . . . . . . . . . . . . . . . 7 . . . . . . . . 53 86 Robot Miss Streak 7 | . 2 4 . 3 7 3 . . . . . . . . . . . . . . . . . . . . . . . . 2 4 Penetration Max 1 | . . . . . 1 . . . . . . . . . . . . . . . . . . . . . . . . . . 1 Secondary Targets 2 | . . . . . 1 1 . . . . . . . . . . . . . . . . . . . . . . . . . . Max Gunslinging Chain 1 | . . . . . 1 1 . . . . . . . . . . . . . . . . . . . . . . . . . . Shots Hit Robots 1826 | . 69 47 . 10 122 48 12 . . 1 4 3 . . . 2 33 . . . . 24 . . 6 1 30 . 18 12 632 752 Core Hits 1581 | . 30 25 . 4 56 22 1 . . . 2 2 . . . . 15 . . . . 16 . . 3 . 15 . 14 6 341 1029 Critical Kills 6 | . . . . . 4 . . . . . . . . . . . . . . . . . . . . . . . . . . 2 Critical Parts Destroyed 2 | . . . . . 1 . . . . . . . . . . . . . . . . . . . . . . . . . . 1 Critical Strikes 78 | . . 1 . . 6 . . . . . . 1 . . . . . . . . . 1 . . . . 2 . 2 1 61 3 Destroy 8 | . . . . . 5 . . . . . . . . . . . . . . . . . . . . . . . . . . 3 Blast 2 | . . 1 . . 1 . . . . . . . . . . . . . . . . . . . . . . . . . . . Corrupt 2 | . . . . . . . . . . . . . . . . . . . . . . . . . . . . . . . 2 . Sever 44 | . . . . . . . . . . . . . . . . . . . . . . . . . . . . . . . 44 . Puncture 22 | . . . . . . . . . . . . 1 . . . . . . . . . 1 . . . . 2 . 2 1 15 . Melee Attacks 742 | . . . . . . . 31 1 . 14 12 20 5 9 . 3 72 5 5 16 1 48 5 4 7 1 56 4 49 31 343 . Impact 31 | . . . . . . . 31 . . . . . . . . . . . . . . . . . . . . . . . . . Slashing 51 | . . . . . . . . 1 . 14 12 12 4 8 . . . . . . . . . . . . . . . . . . Piercing 621 | . . . . . . . . . . . . 8 1 1 . 3 72 5 5 16 1 48 5 4 7 1 56 4 49 31 304 . Entropic 39 | . . . . . . . . . . . . . . . . . . . . . . . . . . . . . . . 39 . Sneak Attacks 64 | . . . . . . . 8 . . 1 . 3 . . . 1 13 . . . . 7 . . . 1 15 . 7 3 5 . Combat Hostiles 8 | . . . . . . . . . . . . . . . . 1 1 . . . . . . . . 1 2 . . 2 1 . Follow-up Attacks 41 | . . . . . . . . . . . . 1 . . . . 2 . . . . 4 . . 1 . 3 . 2 4 24 . Damage Inflicted 71433 | . 824 808 . 166 2707 1009 844 . . 104 126 304 . . . 118 2420 . . . . 1655 . . 693 . 2726 . 1550 979 28490 25910 Guns 8142 | . 426 253 . 78 2103 914 . . . . . . . . . . . . . . . . . . . . . . . . 71 4297 Cannons 24702 | . 376 531 . 87 372 . . . . . . . . . . . . . . . . 69 . . . . . . . . 1683 21584 Explosions 440 | . . . . . 232 95 . . . . . . . . . . . . . . . . . . . . . . . . 113 . Melee 33976 | . . . . . . . 844 . . 104 126 304 . . . 118 2420 . . . . 1586 . . 693 . 2726 . 1550 979 22526 . Ramming 76 | . 22 24 . 1 . . . . . . . . . . . . . . . . . . . . . . . . . . . 29 Kinetic 31439 | . 426 602 . 165 2244 914 . . . . . . . . . . . . . . . . . . . . . . . . 1719 25369 Thermal 5580 | . 376 182 . . 231 . . . . . . . . . . . . . . . . 69 . . . . . . . . 4210 512 Explosive 327 | . . . . . 232 95 . . . . . . . . . . . . . . . . . . . . . . . . . . Electromagnetic 35 | . . . . . . . . . . . . . . . . . . . . . . . . . . . . . . . 35 . Impact 844 | . . . . . . . 844 . . . . . . . . . . . . . . . . . . . . . . . . . Slashing 325 | . . . . . . . . . . 104 126 95 . . . . . . . . . . . . . . . . . . . . Piercing 29401 | . . . . . . . . . . . . 209 . . . 118 2420 . . . . 1586 . . 693 . 2726 . 1550 979 19120 . Entropic 3406 | . . . . . . . . . . . . . . . . . . . . . . . . . . . . . . . 3406 . Highest Corruption 12 | . . 3 3 3 . . . . . . 3 . . . . . 1 . . . . . . . . . 1 1 . . 12 1 Average Corruption 3 | . . 3 3 3 . . . . . . 2 . . . . . 1 . . . . . . . . . 1 1 . . 6 1 Corruption Purged 19 | . . . . . . . . . . . . . . . . . 1 . . . . . . . . . . . . . 18 . Effects 123 | . . 9 8 17 . . . . . . . . . . . . . . . . . . . . . . . . . . 82 7 Message Errors 30 | . . 2 3 2 . . . . . . . . . . . . . . . . . . . . . . . . . . 19 4 Matter Fused 25 | . . 3 3 6 . . . . . . . . . . . . . . . . . . . . . . . . . . 13 . Heat Flow Errors 15 | . . 1 . 3 . . . . . . . . . . . . . . . . . . . . . . . . . . 11 . Energy Discharges 15 | . . . 2 3 . . . . . . . . . . . . . . . . . . . . . . . . . . 8 2 Data Loss (minor) 28 | . . 3 . 3 . . . . . . . . . . . . . . . . . . . . . . . . . . 21 1 Data Loss (major) 1 | . . . . . . . . . . . . . . . . . . . . . . . . . . . . . . . 1 . Alerts 1 | . . . . . . . . . . . . . . . . . . . . . . . . . . . . . . . 1 . Misdirections 8 | . . . . . . . . . . . . . . . . . . . . . . . . . . . . . . . 8 . Overload Shots . | . . . . . . . . . . . . . . . . . . . . . . . . . . . . . . . . . Overflow Damage 4880 | . . 10 . . 47 . 427 . . 44 . 55 . . . 48 644 . . . . 322 . . 240 . 577 . 16 256 2111 83 Projectiles 126 | . . 10 . . 33 . . . . . . . . . . . . . . . . . . . . . . . . . . 83 Explosions 14 | . . . . . 14 . . . . . . . . . . . . . . . . . . . . . . . . . . . Melee 4740 | . . . . . . . 427 . . 44 . 55 . . . 48 644 . . . . 322 . . 240 . 577 . 16 256 2111 . Knockbacks 170 | . . 3 . . 4 . 2 . . . . . . . . . . . . . . . . . . . . . . . 34 127 Impact 3 | . . . . . . . 2 . . . . . . . . . . . . . . . . . . . . . . . . 1 Kinetic 161 | . . 3 . . 4 . . . . . . . . . . . . . . . . . . . . . . . . . 28 126 Secondary 6 | . . . . . . . . . . . . . . . . . . . . . . . . . . . . . . . 6 . Self-Inflicted Damage 93 | . . . . . . . . . . . . . . . . . . . . . . . . . . . . . . . 93 . Shots 1 | . . . . . . . . . . . . . . . . . . . . . . . . . . . . . . . 1 . Rammed 14 | . 5 4 . 2 . . . . . . . . . . . . . . . . . . . . . . . . . . . 3 Targets Rammed 14 | . 5 4 . 2 . . . . . . . . . . . . . . . . . . . . . . . . . . . 3 Kicked . | . . . . . . . . . . . . . . . . . . . . . . . . . . . . . . . . . Crushed . | . . . . . . . . . . . . . . . . . . . . . . . . . . . . . . . . . Highest Temperature 274 | . 188 169 . 162 21 . 12 . . . 6 . . . . . 108 . . . . 168 226 116 . . 124 . 174 94 274 232 Average Temperature 54 | . 60 37 . 41 6 . 9 . . . 4 . . . . . 45 . . . . 61 111 69 . . 38 . 58 10 64 57 Received Heat Transfer 1233 | . 150 87 . 30 297 81 36 . . 30 21 . . . . . . . . . . 9 21 . . . 9 18 18 18 252 156 Effects 3 | . . . . . . . . . . . . . . . . . . . . . . . . . . . . . . . 3 . Interference 3 | . . . . . . . . . . . . . . . . . . . . . . . . . . . . . . . 3 . Siege Activations 9 | . . . . . . . . . . . . . . . . . . . . . . . . . . . . . . . . 9 Total Turns 283 | . . . . . . . . . . . . . . . . . . . . . . . . . . . . . . . . 283 Longest Duration 110 | . . . . . . . . . . . . . . . . . . . . . . . . . . . . . . . . 110 Robots Corrupted . | . . . . . . . . . . . . . . . . . . . . . . . . . . . . . . . . . Combat Hostiles . | . . . . . . . . . . . . . . . . . . . . . . . . . . . . . . . . . Parts Fried 13 | . . . . . . . 13 . . . . . . . . . . . . . . . . . . . . . . . . . Impact Corruptions 16 | . . . . . . . 16 . . . . . . . . . . . . . . . . . . . . . . . . . Robots Melted . | . . . . . . . . . . . . . . . . . . . . . . . . . . . . . . . . . Combat Hostiles . | . . . . . . . . . . . . . . . . . . . . . . . . . . . . . . . . . Parts Melted 12 | . 3 . . . 3 . . . . . . . . . . 2 . . . . . . . . . . . . . . 4 . Heat Transferred 14129 | . 777 370 . . 370 . . . . . . . . . . . . . . . . 74 . . . . . . . . 12430 108 Parts Sabotaged . | . . . . . . . . . . . . . . . . . . . . . . . . . . . . . . . . . Parts Stolen . | . . . . . . . . . . . . . . . . . . . . . . . . . . . . . . . . . Parts Stripped . | . . . . . . . . . . . . . . . . . . . . . . . . . . . . . . . . . Power Chain Reactions 1 | . . . . . . . . . . . . . . . . . . . . . . . . . . . . . . . 1 . Missiles Intercepted . | . . . . . . . . . . . . . . . . . . . . . . . . . . . . . . . . . Alert | -11 -10 -10 -10 -9 -8 -8 -7 -7 -7 -7 -6 -6 -6 -6 -6 -5 -5 -5 -5 -5 -4 -4 -4 -4 -4 -3 -3 -3 -2 -1 -1 -1 ------- Run | Scr Mat Min Exi Min Mat Sto Fac Low Low Dat Pro Fac Low Low Zio Pro Fac Upp Upp War Pro Fac Upp Upp Zhi Pro Res Tes Res Acc Com Ac0 Peak Influence 1968 | . 171 190 . 84 348 293 440 . . . . 242 . . . . 1030 . . . . 689 . . . . 390 1968 1670 1164 647 . Initial 1107 | . . 45 . . 32 100 . . . . . 40 . . . . . . . . . . . . . . 13 187 1107 924 449 . Average 299 | . 56 76 . 38 227 171 234 . . . . 160 . . . . 257 . . . . 323 . . . . 255 1703 1428 971 523 . Maximum Alert Level 5 | . . . . . 1 1 2 . . . . 1 . . . . 3 . . . . 2 . . . . 1 5 5 4 2 . Low Security (%) 77 | . 100 100 . 100 32 62 39 . . . . 59 . . . . 60 . . . . 19 . . . . 7 . . . 96 . Level 1 14 | . . . . . 67 37 36 . . . . 40 . . . . 24 . . . . 63 . . . . 92 . . . . . Level 2 3 | . . . . . . . 23 . . . . . . . . . . . . . . 17 . . . . . . . 4 3 . Level 3 2 | . . . . . . . . . . . . . . . . . 15 . . . . . . . . . . . . 79 . . Level 4 2 | . . . . . . . . . . . . . . . . . . . . . . . . . . . . . 98 16 . . Level 5 . | . . . . . . . . . . . . . . . . . . . . . . . . . . . . . 1 . . . High Security . | . . . . . . . . . . . . . . . . . . . . . . . . . . . . . . . . . Max Security . | . . . . . . . . . . . . . . . . . . . . . . . . . . . . 99 . . . . Squads Dispatched 45 | . 2 . . . 3 1 9 . . . . 2 . . . . 5 . . . . 4 . . . . 3 6 2 7 1 . Investigation 23 | . 2 . . . 2 1 5 . . . . 1 . . . . 3 . . . . 3 . . . . 1 . 1 4 . . Extermination 6 | . . . . . . . 2 . . . . . . . . . . . . . . 1 . . . . 1 . . 1 1 . Reinforcement 6 | . . . . . . . 1 . . . . 1 . . . . 2 . . . . . . . . . . . 1 1 . . Assault 9 | . . . . . . . 1 . . . . . . . . . . . . . . . . . . . 1 6 . 1 . . Garrison 1 | . . . . . 1 . . . . . . . . . . . . . . . . . . . . . . . . . . . Intercept . | . . . . . . . . . . . . . . . . . . . . . . . . . . . . . . . . . Construction Impeded 1 | . . . . . . . 1 . . . . . . . . . . . . . . . . . . . . . . . . . Haulers Reinforced 1 | . . . . . . . . . . . . . . . . . . . . . . . . . . . . . . 1 . . Cargo Convoy Interrupts . | . . . . . . . . . . . . . . . . . . . . . . . . . . . . . . . . . Stealth | -11 -10 -10 -10 -9 -8 -8 -7 -7 -7 -7 -6 -6 -6 -6 -6 -5 -5 -5 -5 -5 -4 -4 -4 -4 -4 -3 -3 -3 -2 -1 -1 -1 --------- Run | Scr Mat Min Exi Min Mat Sto Fac Low Low Dat Pro Fac Low Low Zio Pro Fac Upp Upp War Pro Fac Upp Upp Zhi Pro Res Tes Res Acc Com Ac0 Distress Signals 12 | . . . . . 6 1 2 . . . . . . . . . . . . . . . . . . . 1 . 1 1 . . Communications Jammed 93 | . . . . . . . . . . . . . . . . . . . . . . 14 . . . . 53 4 2 8 12 . Distress Signals 93 | . . . . . . . . . . . . . . . . . . . . . . 14 . . . . 53 4 2 8 12 . Times Spotted 328 | . 16 30 . 7 37 13 14 1 5 4 6 3 . . . 3 14 . . . . 20 5 4 . . 15 25 15 15 11 65 Peak Tracking Total 21 | . 4 14 . 3 7 5 5 1 3 4 5 2 . . . 2 3 . . . . 4 4 4 . . 6 21 3 6 3 7 Tactical Retreats 34 | . . 5 . . 4 . 5 1 4 . 1 2 . . . . 1 . . . . 1 2 1 . . 2 1 1 3 . . Traps | -11 -10 -10 -10 -9 -8 -8 -7 -7 -7 -7 -6 -6 -6 -6 -6 -5 -5 -5 -5 -5 -4 -4 -4 -4 -4 -3 -3 -3 -2 -1 -1 -1 ------- Run | Scr Mat Min Exi Min Mat Sto Fac Low Low Dat Pro Fac Low Low Zio Pro Fac Upp Upp War Pro Fac Upp Upp Zhi Pro Res Tes Res Acc Com Ac0 Traps Triggered 49 | . . . . . . . 5 . . . . . . . . . 2 . . . . 1 . . . . 1 . . . 40 . Indirectly . | . . . . . . . . . . . . . . . . . . . . . . . . . . . . . . . . . Trap Hack Attempts . | . . . . . . . . . . . . . . . . . . . . . . . . . . . . . . . . . Triggered . | . . . . . . . . . . . . . . . . . . . . . . . . . . . . . . . . . Disarmed . | . . . . . . . . . . . . . . . . . . . . . . . . . . . . . . . . . Reprogrammed . | . . . . . . . . . . . . . . . . . . . . . . . . . . . . . . . . . Reused . | . . . . . . . . . . . . . . . . . . . . . . . . . . . . . . . . . Traps Extracted . | . . . . . . . . . . . . . . . . . . . . . . . . . . . . . . . . . Installed . | . . . . . . . . . . . . . . . . . . . . . . . . . . . . . . . . . Triggered 10 | . . . . . . . . 2 . . . . . . . . . . . 7 . . . . . 1 . . . . . . Machines | -11 -10 -10 -10 -9 -8 -8 -7 -7 -7 -7 -6 -6 -6 -6 -6 -5 -5 -5 -5 -5 -4 -4 -4 -4 -4 -3 -3 -3 -2 -1 -1 -1 ---------- Run | Scr Mat Min Exi Min Mat Sto Fac Low Low Dat Pro Fac Low Low Zio Pro Fac Upp Upp War Pro Fac Upp Upp Zhi Pro Res Tes Res Acc Com Ac0 Machines Disabled 19 | . 1 1 . . . 4 1 . . 1 . . . . . . 1 1 . 1 . . . . . . 1 . . . 3 4 Max in Single Turn 2 | . 1 1 . . . 1 1 . . 1 . . . . . . 1 1 . 1 . . . . . . 1 . . . 2 1 Garrison Access 9 | . . . . . . . 1 . . . . . . . . . 4 . . . . 1 . . . . 1 . 2 . . . Phase Generator 1 | . . . . . . . . . . . . . . . . . . . . . . . . . . . . . . . 1 . Machines Sabotaged . | . . . . . . . . . . . . . . . . . . . . . . . . . . . . . . . . . Garrisons Compromised . | . . . . . . . . . . . . . . . . . . . . . . . . . . . . . . . . . Overloaded Fab Kills . | . . . . . . . . . . . . . . . . . . . . . . . . . . . . . . . . . Fab Network Shutdowns 2 | . . . . . . . . . . . . . . . . . 1 . . . . 1 . . . . . . . . . . Hacking | -11 -10 -10 -10 -9 -8 -8 -7 -7 -7 -7 -6 -6 -6 -6 -6 -5 -5 -5 -5 -5 -4 -4 -4 -4 -4 -3 -3 -3 -2 -1 -1 -1 --------- Run | Scr Mat Min Exi Min Mat Sto Fac Low Low Dat Pro Fac Low Low Zio Pro Fac Upp Upp War Pro Fac Upp Upp Zhi Pro Res Tes Res Acc Com Ac0 Machines Accessed 85 | . 11 . 2 2 10 4 9 . . 2 . 5 1 . 1 . 8 2 . 3 . 6 . . 4 1 5 . 3 5 1 . Terminals 37 | . 8 . . 1 7 3 5 . . . . 3 . . . . 2 . . . . 1 . . . 1 2 . 1 3 . . Fabricators 3 | . . . . . . . . . . . . . . . . . 1 . . . . 2 . . . . . . . . . . Repair Stations 6 | . 1 . . . 1 1 . . . . . 1 . . . . . . . . . . . . . . 1 . . . 1 . Recycling Units 8 | . 2 . . . 2 . 2 . . . . 1 . . . . . . . . . 1 . . . . . . . . . . Scanalyzers 5 | . . . . . . . 1 . . . . . . . . . 1 . . . . . . . . . 1 . . 2 . . Garrison Access 10 | . . . . . . . 1 . . . . . . . . . 4 . . . . 2 . . . . 1 . 2 . . . Total Hacks 209 | . 25 . 2 3 26 16 19 . . 17 . 11 1 . 3 . 19 2 . 3 . 15 . . 14 1 10 . 6 14 2 . Successful 121 | . 14 . 2 2 11 7 4 . . 17 . 7 1 . 3 . 12 2 . 3 . 8 . . 14 1 3 . 3 7 . . Failed 88 | . 11 . . 1 15 9 15 . . . . 4 . . . . 7 . . . . 7 . . . . 7 . 3 7 2 . Catastrophic 13 | . 1 . . . . 1 3 . . . . . . . . . 2 . . . . . . . . . 3 . 1 2 . . Database Lockouts . | . . . . . . . . . . . . . . . . . . . . . . . . . . . . . . . . . Manual 95 | . 15 . 1 2 16 5 10 . . . 1 8 . . . . 10 . . . . 12 . . . . 4 . 5 6 . . Terminals 96 | . 21 . . 2 20 11 11 . . . . 8 . . . . 5 . . . . 1 . . . 1 3 . 4 9 . . Fabricators 13 | . . . . . . . . . . . . . . . . . 6 . . . . 7 . . . . . . . . . . Repair Stations 15 | . 2 . . . 2 5 . . . . . 2 . . . . . . . . . . . . . . 2 . . . 2 . Recycling Units 12 | . 2 . . . 4 . 2 . . . . 1 . . . . . . . . . 3 . . . . . . . . . . Scanalyzers 11 | . . . . . . . 3 . . . . . . . . . 1 . . . . . . . . . 2 . . 5 . . Garrison Access 19 | . . . . . . . 3 . . . . . . . . . 7 . . . . 4 . . . . 3 . 2 . . . Terminal Hacks 79 | . 9 . 2 2 7 3 1 . . 17 . 2 1 . 3 . 2 2 . 3 . 1 . . 14 1 1 . 1 7 . . Record 10 | . . . 1 . . . . . . . . . . . . . . 1 . 1 . . . . 6 1 . . . . . . Part Schematic 17 | . 1 . . 1 . . . . . 8 . . . . 3 . . . . . . . . . 4 . . . . . . . Robot Schematic 6 | . . . . . . . . . . 6 . . . . . . . . . . . . . . . . . . . . . . Robot Analysis 8 | . 2 . . . 1 . . . . . . . . . . . . . . . . . . . 4 . 1 . . . . . Prototype ID Bank 8 | . 3 . . . 2 . . . . 3 . . . . . . . . . . . . . . . . . . . . . . Open Door 10 | . . . . 1 . 2 . . . . . . 1 . . . . 1 . 2 . . . . . . . . . 3 . . Branch Access Points 6 | . . . . . 1 . 1 . . . . 1 . . . . 1 . . . . 1 . . . . . . 1 . . . Alert Level 2 | . . . . . 1 . . . . . . . . . . . . . . . . . . . . . . . . 1 . . Unreport Threat 5 | . . . . . 1 1 . . . . . . . . . . . . . . . . . . . . . . . 3 . . Locate Traps 3 | . 2 . . . . . . . . . . 1 . . . . . . . . . . . . . . . . . . . . Zone Layout 3 | . 1 . . . 1 . . . . . . . . . . . 1 . . . . . . . . . . . . . . . EX-Prototype ID Bank 1 | . . . 1 . . . . . . . . . . . . . . . . . . . . . . . . . . . . . Fabricator Hacks 6 | . . . . . . . . . . . . . . . . . 4 . . . . 2 . . . . . . . . . . Load Schematic 3 | . . . . . . . . . . . . . . . . . 2 . . . . 1 . . . . . . . . . . Build 3 | . . . . . . . . . . . . . . . . . 2 . . . . 1 . . . . . . . . . . Repair Station Hacks 11 | . 2 . . . 1 4 . . . . . 2 . . . . . . . . . . . . . . 2 . . . . . Scan Component 6 | . 1 . . . 1 2 . . . . . 1 . . . . . . . . . . . . . . 1 . . . . . Repair 5 | . 1 . . . . 2 . . . . . 1 . . . . . . . . . . . . . . 1 . . . . . Recycling Unit Hacks . | . . . . . . . . . . . . . . . . . . . . . . . . . . . . . . . . . Scanalyzer 1 | . . . . . . . . . . . . . . . . . 1 . . . . . . . . . . . . . . . Insert Component 1 | . . . . . . . . . . . . . . . . . 1 . . . . . . . . . . . . . . . Garrison Access Hacks 2 | . . . . . . . . . . . . . . . . . 1 . . . . . . . . . . . 1 . . . Seal Access 2 | . . . . . . . . . . . . . . . . . 1 . . . . . . . . . . . 1 . . . Unauthorized Hacks 22 | . 3 . . . 3 . 3 . . . . 3 . . . . 4 . . . . 5 . . . . . . 1 . . . Terminals 6 | . 1 . . . 2 . 1 . . . . 2 . . . . . . . . . . . . . . . . . . . . Botnet 4 | . 1 . . . 1 . 1 . . . . 1 . . . . . . . . . . . . . . . . . . . . Operators 2 | . . . . . 1 . . . . . . 1 . . . . . . . . . . . . . . . . . . . . Fabricators 4 | . . . . . . . . . . . . . . . . . 1 . . . . 3 . . . . . . . . . . Prioritize 1 | . . . . . . . . . . . . . . . . . 1 . . . . . . . . . . . . . . . Siphon 1 | . . . . . . . . . . . . . . . . . . . . . . 1 . . . . . . . . . . Haulers 1 | . . . . . . . . . . . . . . . . . . . . . . 1 . . . . . . . . . . Download 1 | . . . . . . . . . . . . . . . . . . . . . . 1 . . . . . . . . . . Repair Stations . | . . . . . . . . . . . . . . . . . . . . . . . . . . . . . . . . . Recycling Units 7 | . 2 . . . 1 . 2 . . . . 1 . . . . . . . . . 1 . . . . . . . . . . Mask 1 | . . . . . . . . . . . . . . . . . . . . . . 1 . . . . . . . . . . Tunnel 6 | . 2 . . . 1 . 2 . . . . 1 . . . . . . . . . . . . . . . . . . . . Scanalyzers . | . . . . . . . . . . . . . . . . . . . . . . . . . . . . . . . . . Garrison Access 5 | . . . . . . . . . . . . . . . . . 3 . . . . 1 . . . . . . 1 . . . Jam 5 | . . . . . . . . . . . . . . . . . 3 . . . . 1 . . . . . . 1 . . . Data Cores Recovered 2 | . 1 . . . . . 1 . . . . . . . . . . . . . . . . . . . . . . . . . Used . | . . . . . . . . . . . . . . . . . . . . . . . . . . . . . . . . . Hacking Detections 56 | . 9 . . 1 9 4 7 . . . . 4 . . . . 5 . . . . 5 . . . 1 4 . 1 5 1 . Full Trace Events 11 | . . . . . 1 1 3 . . . . . . . . . . . . . . 1 . . . . 1 . . 4 . . Feedback Events 1 | . . . . . . 1 . . . . . . . . . . . . . . . . . . . . . . . . . . Hackware Fried 1 | . . . . . . 1 . . . . . . . . . . . . . . . . . . . . . . . . . . Feedback Blocked . | . . . . . . . . . . . . . . . . . . . . . . . . . . . . . . . . . Robot Schematics Acquired 7 | . . . . . . . . . . 6 . . . . . . . . . . . 1 . . . . . . . . . . Robots Built . | . . . . . . . . . . . . . . . . . . . . . . . . . . . . . . . . . Matter . | . . . . . . . . . . . . . . . . . . . . . . . . . . . . . . . . . Time . | . . . . . . . . . . . . . . . . . . . . . . . . . . . . . . . . . Total Robot Build Rating . | . . . . . . . . . . . . . . . . . . . . . . . . . . . . . . . . . Part Schematics Acquired 17 | . 1 . . 1 . . . . . 8 . . . . 3 . . . . . . . . . 4 . . . . . . . Parts Built 3 | . . . . . . . . . . . . . . . . . 2 . . . . 1 . . . . . . . . . . Matter 1056 | . . . . . . . . . . . . . . . . . 768 . . . . 288 . . . . . . . . . . Time 510 | . . . . . . . . . . . . . . . . . 306 . . . . 204 . . . . . . . . . . Total Part Build Rating 24 | . . . . . . . . . . . . . . . . . 16 . . . . 8 . . . . . . . . . . Parts Repaired 5 | . 1 . . . . 2 . . . . . 1 . . . . . . . . . . . . . . 1 . . . . . Time 151 | . 26 . . . . 76 . . . . . 30 . . . . . . . . . . . . . . 19 . . . . . Parts Recycled . | . . . . . . . . . . . . . . . . . . . . . . . . . . . . . . . . . Recycled Matter . | . . . . . . . . . . . . . . . . . . . . . . . . . . . . . . . . . Retrieved Matter . | . . . . . . . . . . . . . . . . . . . . . . . . . . . . . . . . . Retrieved Components . | . . . . . . . . . . . . . . . . . . . . . . . . . . . . . . . . . Parts Scanalyzed . | . . . . . . . . . . . . . . . . . . . . . . . . . . . . . . . . . Part Schematics Acquired . | . . . . . . . . . . . . . . . . . . . . . . . . . . . . . . . . . Parts Damaged . | . . . . . . . . . . . . . . . . . . . . . . . . . . . . . . . . . Bothacking | -11 -10 -10 -10 -9 -8 -8 -7 -7 -7 -7 -6 -6 -6 -6 -6 -5 -5 -5 -5 -5 -4 -4 -4 -4 -4 -3 -3 -3 -2 -1 -1 -1 ------------ Run | Scr Mat Min Exi Min Mat Sto Fac Low Low Dat Pro Fac Low Low Zio Pro Fac Upp Upp War Pro Fac Upp Upp Zhi Pro Res Tes Res Acc Com Ac0 Used RIF Installer . | . . . . . . . . . . . . . . . . . . . . . . . . . . . . . . . . . Robots Hacked . | . . . . . . . . . . . . . . . . . . . . . . . . . . . . . . . . . Non-combat . | . . . . . . . . . . . . . . . . . . . . . . . . . . . . . . . . . Combat . | . . . . . . . . . . . . . . . . . . . . . . . . . . . . . . . . . Robot Hacks Applied . | . . . . . . . . . . . . . . . . . . . . . . . . . . . . . . . . . Relay Couplers Released 5 | . . . . . . . 1 . . . . . . . . . . . . . . . . . . . 1 . 3 . . . Machine Destruction 5 | . . . . . . . 1 . . . . . . . . . . . . . . . . . . . 1 . 3 . . . Robots Rewired . | . . . . . . . . . . . . . . . . . . . . . . . . . . . . . . . . . Allies Hacked 1 | . . . . . . . . . . . . . . . . 1 . . . . . . . . . . . . . . . . Hacks Repelled 1 | . . . . . . . . . . . . . . . . 1 . . . . . . . . . . . . . . . . Allies | -11 -10 -10 -10 -9 -8 -8 -7 -7 -7 -7 -6 -6 -6 -6 -6 -5 -5 -5 -5 -5 -4 -4 -4 -4 -4 -3 -3 -3 -2 -1 -1 -1 -------- Run | Scr Mat Min Exi Min Mat Sto Fac Low Low Dat Pro Fac Low Low Zio Pro Fac Upp Upp War Pro Fac Upp Upp Zhi Pro Res Tes Res Acc Com Ac0 Total Allies 21 | . . . . 5 . . 3 . . . . . . . 4 . 1 . . . . 1 . . . . 1 . . 3 3 . Largest Group 5 | . . . . 5 3 . 3 . . . . . . . 4 4 2 1 1 1 1 1 . . . . 1 . . 3 . . Highest-Rated Group 373 | . . . . 90 63 . 93 . . . . . . . 123 123 56 26 26 26 26 26 . . . . 10 . . 373 . . Highest-Rated Ally 131 | . . . . 31 31 . 31 . . . . . . . 47 47 31 26 26 26 26 26 . . . . 10 . . 131 . . Total Orders 80 | . . . . . . . . . . . . . . . . . 14 2 2 7 . 14 . . . 2 11 . . 4 6 18 STAY 10 | . . . . . . . . . . . . . . . . . . 1 1 5 . 2 . . . . . . . . 1 . FOLLOW 6 | . . . . . . . . . . . . . . . . . . 1 1 2 . 2 . . . . . . . . . . EXPLORE 12 | . . . . . . . . . . . . . . . . . . . . . . . . . . . . . . . . 12 RETURN 52 | . . . . . . . . . . . . . . . . . 14 . . . . 10 . . . 2 11 . . 4 5 6 Ally Attacks 177 | . . . . 31 26 . 50 . . . . . . . . 22 7 . . . . 1 . 3 . 1 12 . . 16 8 . Total Damage 2806 | . . . . 414 418 . 752 . . . . . . . . 532 116 . . . . 4 . 10 . 9 178 . . 320 53 . Kills 21 | . . . . 6 2 . 7 . . . . . . . . 2 . . . . . . . . . . 2 . . 2 . . Allies Corrupted . | . . . . . . . . . . . . . . . . . . . . . . . . . . . . . . . . . Allies Melted 2 | . . . . . . . . . . . . . . . . . . . . . . . . . . . . . 2 . . . Intel | -11 -10 -10 -10 -9 -8 -8 -7 -7 -7 -7 -6 -6 -6 -6 -6 -5 -5 -5 -5 -5 -4 -4 -4 -4 -4 -3 -3 -3 -2 -1 -1 -1 ------- Run | Scr Mat Min Exi Min Mat Sto Fac Low Low Dat Pro Fac Low Low Zio Pro Fac Upp Upp War Pro Fac Upp Upp Zhi Pro Res Tes Res Acc Com Ac0 Robot Analysis Total 8 | . 2 . . . 1 . . . . . . . . . . . . . . . . . . . 4 . 1 . . . . . Derelict Logs Recovered 25 | . . 1 . 2 . . . 2 2 . 1 . 2 2 2 2 . 2 2 . 1 . 2 2 . . . . . . . . Drone Launches 83 | . . . . . . . . . . . . . . . . . 15 . . . . 10 . 3 . 3 18 . . 7 13 14 Drone Recoveries 78 | . . . . . . . . . . . . . . . . . 15 . . . . 10 . 3 . 3 17 . . 7 12 11 Exploration | -11 -10 -10 -10 -9 -8 -8 -7 -7 -7 -7 -6 -6 -6 -6 -6 -5 -5 -5 -5 -5 -4 -4 -4 -4 -4 -3 -3 -3 -2 -1 -1 -1 ------------- Run | Scr Mat Min Exi Min Mat Sto Fac Low Low Dat Pro Fac Low Low Zio Pro Fac Upp Upp War Pro Fac Upp Upp Zhi Pro Res Tes Res Acc Com Ac0 Turns Passed 33441 | . 1490 1111 637 859 2199 835 693 260 276 104 233 380 541 443 473 529 1062 283 243 652 255 827 278 568 97 145 695 101 584 485 14732 1371 Spaces Moved 31292 | 1 805 564 403 530 941 269 1214 559 577 151 364 733 739 486 905 663 2100 574 566 1082 594 1420 579 875 213 355 1109 361 1272 923 8992 373 Core 49 | . . . . . . 1 . . . . . . . . . . . . . . . . . . . . . . . . 37 11 Treads 6600 | . 574 564 269 . . . . . . . . . . . . . . . . . . . . . . . . . . . 4831 362 Legs 232 | 1 231 . . . . . . . . . . . . . . . . . . . . . . . . . . . . . . . Wheels 1874 | . . . 134 530 941 268 1 . . . . . . . . . . . . . . . . . . . . . . . . . Hover 22537 | . . . . . . . 1213 559 577 151 364 733 739 486 905 663 2100 574 566 1082 594 1420 579 875 213 355 1109 361 1272 923 4124 . Flight . | . . . . . . . . . . . . . . . . . . . . . . . . . . . . . . . . . Fastest Speed 17 | 120 120 160 115 145 120 150 38 38 38 38 38 34 34 34 34 34 34 34 34 34 34 28 28 28 28 28 28 17 26 26 23 50 Average Speed 68 | 120 148 160 154 145 155 168 38 38 38 38 38 34 34 34 34 34 34 34 34 34 34 28 28 28 28 28 28 24 27 30 106 146 Slowest Speed 1250 | 120 160 160 160 145 165 1200 165 38 38 38 38 34 34 34 94 34 94 34 34 34 34 28 28 28 28 28 28 28 84 33 1250 335 Overloaded Moves 207 | . . . . . . . . . . . . . . . . . . . . . . . . . . . . 172 . . 35 . Propulsion Burnouts . | . . . . . . . . . . . . . . . . . . . . . . . . . . . . . . . . . Robots Hopped . | . . . . . . . . . . . . . . . . . . . . . . . . . . . . . . . . . Cave-ins Triggered . | . . . . . . . . . . . . . . . . . . . . . . . . . . . . . . . . . Teleports 2 | . . . . . . . . . . . . . . . . . . . . . . . . . . . . . . . 1 1 Exploration Rate (%) 64 | 2 97 96 70 94 60 47 38 71 78 76 54 21 82 77 84 71 61 72 76 92 71 40 80 90 60 57 23 57 34 25 93 67 Regions Visited 32 Branch Regions 23 Pre-discovered Areas 16 | . 2 . 1 . 1 . 2 . . . . 1 . . 2 1 . 1 . . 1 . 1 . 3 . . . . . . . Known Exits Taken 23 | . . . . 1 1 . 1 1 1 1 1 1 1 1 1 1 1 1 1 1 1 1 1 1 . 1 . 1 . 1 . . Unknown Exits Taken 9 | 1 1 1 1 . . 1 . . . . . . . . . . . . . . . . . . 1 . 1 . 1 . 1 . Scrap Searched 47 | . . 1 . 2 . . . 3 5 . 1 . 3 10 3 3 . 5 3 . 3 . . 4 . 1 . . . . . . Spaces Dug 281 | . . . . . 26 . 15 1 . 9 7 16 4 7 . 1 25 3 4 7 1 22 6 5 . . 18 4 16 10 72 2 Terrain Destroyed 440 | . . . . . 48 17 15 1 . 9 7 16 4 7 . 1 29 3 4 7 1 26 11 6 . . 20 4 21 10 152 21 Melee 238 | . . . . . . . 15 1 . 9 7 16 4 7 . 1 23 3 4 7 1 19 5 4 . . 17 4 14 9 68 . Projectile 69 | . . . . . . 2 . . . . . . . . . . 6 . . . . 7 6 2 . . 3 . 7 1 14 21 AOE 133 | . . . . . 48 15 . . . . . . . . . . . . . . . . . . . . . . . . 70 . Terrain Rammed . | . . . . . . . . . . . . . . . . . . . . . . . . . . . . . . . . . Walls Destroyed . | . . . . . . . . . . . . . . . . . . . . . . . . . . . . . . . . . Machines Disabled . | . . . . . . . . . . . . . . . . . . . . . . . . . . . . . . . . . Actions | -11 -10 -10 -10 -9 -8 -8 -7 -7 -7 -7 -6 -6 -6 -6 -6 -5 -5 -5 -5 -5 -4 -4 -4 -4 -4 -3 -3 -3 -2 -1 -1 -1 --------- Run | Scr Mat Min Exi Min Mat Sto Fac Low Low Dat Pro Fac Low Low Zio Pro Fac Upp Upp War Pro Fac Upp Upp Zhi Pro Res Tes Res Acc Com Ac0 Total 40769 | . 1002 678 416 597 1539 602 1389 603 633 177 441 833 1018 744 1069 960 2329 654 609 1351 644 1774 680 1188 242 398 1452 370 1462 1088 12987 840 Wait 6340 | . 95 57 . 42 393 250 72 38 57 6 62 48 265 234 151 295 118 74 40 213 50 279 90 306 . 43 264 1 119 119 2484 75 Move 31257 | . 804 563 402 529 940 268 1213 558 576 150 363 732 738 485 904 662 2099 573 565 1081 593 1419 578 874 212 354 1108 360 1271 922 8989 372 Hop . | . . . . . . . . . . . . . . . . . . . . . . . . . . . . . . . . . Pick Up 245 | . 14 3 4 4 33 10 6 1 . 3 1 7 1 1 2 . 4 . . 8 . 5 . . 2 . 9 1 3 6 104 13 Fast Attach 200 | . 5 1 2 2 11 9 10 2 . . . 5 1 2 3 . 2 2 . 11 . 2 . . 10 . 1 . 6 4 94 15 Attach 121 | . . 4 2 . 6 5 11 . . 1 1 5 2 2 2 . 4 . . 5 . 2 . . 2 . 3 1 . 1 43 19 Detach 137 | . 1 . 1 2 1 3 9 . . . 1 2 2 2 1 . 3 . . 3 . . . . 1 . 2 1 . . 97 5 Swap 173 | . 9 . 2 2 16 3 . 1 . . . 5 1 1 2 . 24 . . . . 9 1 2 . . 7 . 9 5 23 51 Drop 373 | . 13 . 3 4 44 16 21 2 . 3 1 10 2 5 4 . 6 1 . 18 . 6 . . 10 . 5 2 7 7 169 14 Fire 1025 | . 56 46 . 10 95 38 3 . . . . . 2 4 . . 6 . . . . 9 6 2 . . 3 . 7 1 464 273 Melee 645 | . . . . . . . 31 1 . 14 12 19 4 8 . 3 63 4 4 12 1 43 5 4 5 1 50 4 40 23 294 . Ram . | . . . . . . . . . . . . . . . . . . . . . . . . . . . . . . . . . Kick . | . . . . . . . . . . . . . . . . . . . . . . . . . . . . . . . . . Crush 14 | . 5 4 . 2 . . . . . . . . . . . . . . . . . . . . . . . . . . . 3 Escape Stasis 181 | . . . . . . . 13 . . . . . . . . . . . . . . . . . . . . . . . 168 . Rewire 58 | . . . . . . . . . . . . . . . . . . . . . . . . . . . . . . . 58 . Trap . | . . . . . . . . . . . . . . . . . . . . . . . . . . . . . . . . . Miscellaneous . | . . . . . . . . . . . . . . . . . . . . . . . . . . . . . . . . . Route ------- -11/Scrapyard -10/Materials (discovered 4 exits: [*Mat x3] / [*Min]) -10/Mines (discovered 3 exits: [*Mat x2] / *Exi) -10/Exiles -9/Mines (discovered 2 exits: *Mat x2) -8/Materials (discovered 3 exits: *Fac / *Sto x2) -8/Storage (discovered 2 exits: *Fac / Rec) -7/Factory (discovered 3 exits: *Fac / *Low x2) -7/Lower Caves -7/Lower Caves (discovered 2 exits: *Fac / *Dat) -7/Data Miner -6/Proximity Caves -6/Factory (discovered 3 exits: Fac / *Low x2) -6/Lower Caves -6/Lower Caves (discovered 2 exits: *Fac / *Zio) -6/Zion -5/Proximity Caves -5/Factory (discovered 6 exits: *Fac x4 / *Upp x2) -5/Upper Caves -5/Upper Caves (discovered 2 exits: *Fac / *War) -5/Warlord -4/Proximity Caves -4/Factory (discovered 8 exits: Res x3 / *Upp x2 / Ext x2 / Arm) -4/Upper Caves -4/Upper Caves (discovered 2 exits: *Res / *Zhi) -4/Zhirov -3/Proximity Caves -3/Research (discovered 4 exits: Res x3 / [*Tes]) -3/Testing -2/Research (discovered 4 exits: *Acc x2 / *Qua x2) -1/Access (discovered 2 exits: Sur / *Com) -1/Command (discovered 3 exits: *Sur x2 / [*Ac0]) -1/Access_0 Near Former Tau Ceti IV History --------- Turn | Location | Event 1 | -11/Scrapyard | Discovered new exit (range 0) 1 | -11/Scrapyard | Entered Materials 173 | -10/Materials | Discovered new exit (range 8) 302 | -10/Materials | Build established: Mutant 518 | -10/Materials | Discovered new exit (range 16) 706 | -10/Materials | Discovered new exit (range 15) 804 | -10/Materials | Repaired Lgt. Treads 1017 | -10/Materials | Discovered new exit (range 15) 1491 | -10/Materials | Entered Mines 1565 | -10/Mines | Discovered new exit (range 9) 1785 | -10/Mines | Assembled infested the area 1790 | -10/Mines | Assisted by a Guerilla fighting off Assembled 1921 | -10/Mines | Deemed a non-threat by the Exiles lab entrance 1979 | -10/Mines | Discovered new exit (range 14) 2420 | -10/Mines | Core integrity fell below 50% 2445 | -10/Mines | Discovered new exit (range 9) 2602 | -10/Mines | Entered Exiles 2639 | -10/Exiles | Met 8R-AWN 2665 | -10/Exiles | Met EX-HEX 2732 | -10/Exiles | Met EX-DEC 2738 | -10/Exiles | Learned location of Zion (-6) 2770 | -10/Exiles | Met EX-BIN 2793 | -10/Exiles | Aligned with FarCom system 2794 | -10/Exiles | Given EX-Vault access code 2838 | -10/Exiles | Opened EX-Vault 2848 | -10/Exiles | Found Potential Leg 2858 | -10/Exiles | Found Field Lobotomy Kit 2894 | -10/Exiles | Warned to stay clear of 0b10 Research branches 3221 | -10/Exiles | Discovered new exit (range 14) 3239 | -10/Exiles | Left Exiles lab with Field Lobotomy Kit 3239 | -10/Exiles | Entered Mines 3245 | -9/Mines | Found the Drone Emporium 3251 | -9/Mines | Learned Materials stockpile data 3254 | -9/Mines | Found Prototype Device 3254 | -9/Mines | Identified Splice Drone Bay 3367 | -9/Mines | Identified exit to Materials 3790 | -9/Mines | Assisted by bots powering up and referring to "LRC-V3" 3959 | -9/Mines | Received a Rocket Launcher from a helpful Derelict 3994 | -9/Mines | Discovered exit to Materials (range 9) 4098 | -9/Mines | Entered Materials 4098 | -8/Materials | Accompanied by 3 allies 4098 | -8/Materials | Evolved 4 slots: Propulsion x1, Utility x3 4110 | -8/Materials | Led the pair of lost Derelicts to an unsafe place 4430 | -8/Materials | Build established: Scavenger-Skirmisher 4796 | -8/Materials | Discovered new exit (range 15) 5304 | -8/Materials | Build established: Skirmisher 5575 | -8/Materials | Identified exit to Storage 5599 | -8/Materials | Discovered new exit (range 16) 5856 | -8/Materials | Garrison activated, responded to threat 5886 | -8/Materials | Build established: Mutant 6297 | -8/Materials | Entered Storage 6298 | -8/Storage | Identified exit to Recycling 6633 | -8/Storage | Build established: Skirmisher 6812 | -8/Storage | Hacking Suite fried by hacking feedback 6962 | -8/Storage | Repaired Hrd. Medium Armor Plating 7001 | -8/Storage | Repaired Lgt. Nuclear Core 7079 | -8/Storage | Discovered new exit (range 12) 7132 | -8/Storage | Entered Factory 7132 | -7/Factory | Evolved 2 slots: Propulsion x1, Utility x1 7246 | -7/Factory | Allied Derelicts emerged from ambush trap array 7418 | -7/Factory | Build established: Scout 7596 | -7/Factory | Discovered new exit (range 11) 7660 | -7/Factory | Identified exit to Factory 7770 | -7/Factory | Identified exit to Lower Caves 7825 | -7/Factory | Entered Lower Caves 7828 | -7/Lower Caves | Learned Factory terminal intel 7860 | -7/Lower Caves | Found Alien Artifact 7860 | -7/Lower Caves | Identified Core Expander 7860 | -7/Lower Caves | Installed Core Expander, added new Power slot 7881 | -7/Lower Caves | Learned Factory security intel 8043 | -7/Lower Caves | Encountered a Warlord checkpoint 8050 | -7/Lower Caves | Discovered new exit (range 8) 8084 | -7/Lower Caves | Identified exit to Lower Caves 8085 | -7/Lower Caves | Entered another Lower Caves area 8101 | -7/Lower Caves | Discovered exit to Factory (range 8) 8106 | -7/Lower Caves | Build established: Mutant 8201 | -7/Lower Caves | Encountered a Warlord checkpoint 8252 | -7/Lower Caves | Learned Factory trap positions 8332 | -7/Lower Caves | Discovered new exit (range 12) 8347 | -7/Lower Caves | Learned Factory security intel 8361 | -7/Lower Caves | Identified exit to Data Miner 8361 | -7/Lower Caves | Entered Data Miner 8361 | -7/Data Miner | Discovered new exit (range 6) 8369 | -7/Data Miner | Met Data Miner 8382 | -7/Data Miner | Received God Mode back door access code from Data Miner 8392 | -7/Data Miner | Identified exit to Proximity Caves 8436 | -7/Data Miner | Data Conduit disabled 8465 | -7/Data Miner | Entered Proximity Caves 8470 | -6/Proximity Caves | Acquired the password to a Derelict Tinkerer's latest research 8476 | -6/Proximity Caves | Found Prototype Special Weapon 8491 | -6/Proximity Caves | Learned Factory terminal intel 8592 | -6/Proximity Caves | Caught by Unaware searching for contraband prototypes 8692 | -6/Proximity Caves | Discovered exit to Factory (range 15) 8693 | -6/Proximity Caves | Attracted the attention of an 0b10 checkpoint 8698 | -6/Proximity Caves | Entered Factory 8698 | -6/Factory | Evolved 2 slots: Propulsion x1, Utility x1 8699 | -6/Factory | Loaded intel: 99 trap records 8701 | -6/Factory | Loaded intel: 19 terminal locations 8873 | -6/Factory | Repaired Aerolev Unit 8912 | -6/Factory | Identified exit to Lower Caves 8976 | -6/Factory | Discovered new exit (range 15) 9013 | -6/Factory | Build established: Ninja 9078 | -6/Factory | Entered Lower Caves 9086 | -6/Lower Caves | Learned Factory emergency access door positions 9089 | -6/Lower Caves | Encountered a Warlord checkpoint 9212 | -6/Lower Caves | Learned location of 1 exit from Factory 9233 | -6/Lower Caves | Discovered new exit (range 10) 9366 | -6/Lower Caves | Build established: Scout 9410 | -6/Lower Caves | Identified Molecular Deconstructor 9619 | -6/Lower Caves | Identified exit to Lower Caves 9619 | -6/Lower Caves | Entered another Lower Caves area 9792 | -6/Lower Caves | Discovered new exit (range 20) 10005 | -6/Lower Caves | Learned location of 1 exit from Proximity Caves 10057 | -6/Lower Caves | Discovered new exit (range 3) 10058 | -6/Lower Caves | Identified exit to Zion 10062 | -6/Lower Caves | Entered Zion 10074 | -6/Zion | Discovered new exit (range 9) 10095 | -6/Zion | Gained Derelict followers 10134 | -6/Zion | Learned Factory emergency access door positions 10171 | -6/Zion | Learned location of Armory (-4) 10212 | -6/Zion | Given the Hacking Drone Bay 10216 | -6/Zion | Found Prototype Device 10216 | -6/Zion | Identified Hacking Drone Bay 10235 | -6/Zion | Rebuked by Imprinter 10246 | -6/Zion | Found CR-A16's Pointy Stick 10409 | -6/Zion | Identified exit to Proximity Caves 10535 | -6/Zion | Entered Proximity Caves 10535 | -5/Proximity Caves | Accompanied by 4 allies 10536 | -5/Proximity Caves | Identified exit to Factory 10827 | -5/Proximity Caves | Learned 4 Factory zone layouts 10924 | -5/Proximity Caves | Spotted B-75 Beast 10925 | -5/Proximity Caves | Revealed the true nature of CR-A16's Pointy Stick 10928 | -5/Proximity Caves | Destroyed B-75 Beast 11064 | -5/Proximity Caves | Entered Factory 11064 | -5/Factory | Accompanied by 2 allies 11064 | -5/Factory | Evolved 2 slots: Utility x2 11065 | -5/Factory | Identified exit to Factory 11069 | -5/Factory | Loaded intel: 18 terminal locations 11364 | -5/Factory | Build established: Ninja 11654 | -5/Factory | Fabricated Exp. Terrain Scanner? 11708 | -5/Factory | Spotted B-75 Beast 11718 | -5/Factory | Destroyed B-75 Beast 11785 | -5/Factory | Fabricated Exp. Sensor Array (x1) 11888 | -5/Factory | Identified exit to Upper Caves 11966 | -5/Factory | Local fabrication network quarantined 12126 | -5/Factory | Entered Upper Caves 12126 | -5/Upper Caves | Accompanied by 1 ally 12265 | -5/Upper Caves | Found Alien Artifact 12265 | -5/Upper Caves | Identified Dimensional Node Initializer 12265 | -5/Upper Caves | Initialized slip node 12354 | -5/Upper Caves | Discovered new exit (range 16) 12393 | -5/Upper Caves | Identified exit to Upper Caves 12409 | -5/Upper Caves | Entered another Upper Caves area 12409 | -5/Upper Caves | Accompanied by 1 ally 12416 | -5/Upper Caves | Discovered exit to Factory (range 7) 12421 | -5/Upper Caves | Build established: Scout 12432 | -5/Upper Caves | Encountered a Warlord checkpoint 12529 | -5/Upper Caves | Learned 12 Factory zone layouts 12560 | -5/Upper Caves | Discovered new exit (range 21) 12639 | -5/Upper Caves | Learned 12 Factory zone layouts 12645 | -5/Upper Caves | Identified exit to Warlord 12652 | -5/Upper Caves | Entered Warlord 12652 | -5/Warlord | Accompanied by 1 ally 12822 | -5/Warlord | Received a Watcher feed algorithm from an ecstatic Tinkerer 12863 | -5/Warlord | Met Warlord 12884 | -5/Warlord | Warlord's base attacked by MAIN.C 12889 | -5/Warlord | Found Prototype Reactor 12893 | -5/Warlord | Identified Vortex Chain Reactor 12900 | -5/Warlord | Found Prototype Processor 12932 | -5/Warlord | Found Prototype Energy Gun 12932 | -5/Warlord | Identified Vortex Rail 12935 | -5/Warlord | Found Prototype Piercing Weapon 12935 | -5/Warlord | Identified Vortex Lance 12939 | -5/Warlord | Found Prototype Launcher 12939 | -5/Warlord | Identified Vortex Catalyst Activator 12949 | -5/Warlord | Found Vortex Lance 12953 | -5/Warlord | Identified Exp. Targeting Computer 13034 | -5/Warlord | Discovered new exit (range 30) 13112 | -5/Warlord | Warlord forces counterattacked 13146 | -5/Warlord | Opened side exit 13175 | -5/Warlord | Identified exit to Proximity Caves 13304 | -5/Warlord | Entered Proximity Caves 13304 | -4/Proximity Caves | Accompanied by 1 ally 13311 | -4/Proximity Caves | Learned location of Testing (-3) 13516 | -4/Proximity Caves | Discovered exit to Factory (range 14) 13559 | -4/Proximity Caves | Entered Factory 13559 | -4/Factory | Accompanied by 1 ally 13559 | -4/Factory | Evolved 2 slots: Propulsion x1, Utility x1 13560 | -4/Factory | Identified exit to Extension 13560 | -4/Factory | Identified exit to Armory 13561 | -4/Factory | Identified exit to Research 13653 | -4/Factory | Spotted B-86 Titan 13656 | -4/Factory | Local fabrication network quarantined 13659 | -4/Factory | Destroyed B-86 Titan 13676 | -4/Factory | Identified exit to Upper Caves 13848 | -4/Factory | Fabricated Exp. Transmission Jammer (x1) 13869 | -4/Factory | Build established: Ninja 14386 | -4/Factory | Entered Upper Caves 14583 | -4/Upper Caves | Discovered new exit (range 27) 14662 | -4/Upper Caves | Learned location of 1 exit from Upper Caves 14664 | -4/Upper Caves | Identified exit to Upper Caves 14664 | -4/Upper Caves | Entered another Upper Caves area 14664 | -4/Upper Caves | Discovered exit to Research (range 9) 14665 | -4/Upper Caves | Identified exit to Zhirov 14777 | -4/Upper Caves | Learned Research stockpile data 15232 | -4/Upper Caves | Entered Zhirov 15232 | -4/Zhirov | Discovered new exit (range 3) 15238 | -4/Zhirov | Met Zhirov 15243 | -4/Zhirov | Learned location of Command (-1) 15245 | -4/Zhirov | Zhirov requested help retrieving the SGEMP Prototype 15252 | -4/Zhirov | Found Alien Artifact 15252 | -4/Zhirov | Identified Integrated Reactor 15252 | -4/Zhirov | Installed Integrated Reactor, increased core energy generation (+10) 15299 | -4/Zhirov | Found Alien Artifact 15329 | -4/Zhirov | Entered Proximity Caves 15383 | -3/Proximity Caves | Spotted B-86 Titan 15401 | -3/Proximity Caves | Discovered exit to Research (range 20) 15466 | -3/Proximity Caves | Destroyed Titan 8a 15474 | -3/Proximity Caves | Entered Research 15474 | -3/Research | Evolved 2 slots: Utility x1, Weapon x1 15488 | -3/Research | Identified exit to Research 15507 | -3/Research | Spotted B-86 Titan 15511 | -3/Research | Destroyed B-86 Titan 15715 | -3/Research | Repaired Imp. Utility Shielding 15783 | -3/Research | Discovered new exit (range 20) 15839 | -3/Research | Spotted B-86 Titan 15840 | -3/Research | Destroyed B-86 Titan 15923 | -3/Research | Found Prototype Processor 16169 | -3/Research | Entered Testing 16170 | -3/Testing | Maximum security lockdown engaged 16222 | -3/Testing | Spotted PH-S1R7C4TYD7 16240 | -3/Testing | Spotted Striker 16240 | -3/Testing | Spotted Striker 16243 | -3/Testing | Spotted Alpha 7 16244 | -3/Testing | Stole the SGEMP Prototype 16262 | -3/Testing | Discovered exit to Research (range 11) 16270 | -3/Testing | Entered Research 16270 | -2/Research | Warlord forces began assault on 0b10 16270 | -2/Research | Evolved 2 slots: Utility x2 16271 | -2/Research | Identified exit to Quarantine 16341 | -2/Research | Met up with Warlord 16380 | -2/Research | Research machine network offline 16477 | -2/Research | Spotted B-90 Cyclops 16482 | -2/Research | Borebot progress halted 16491 | -2/Research | Destroyed B-90 Cyclops 16514 | -2/Research | Discovered new exit (range 24) 16562 | -2/Research | Discovered new exit (range 25) 16660 | -2/Research | Spotted B-90 Cyclops 16661 | -2/Research | Destroyed B-90 Cyclops 16854 | -2/Research | Entered Access 16854 | -1/Access | Evolved 2 slots: Power x1, Weapon x1 16855 | -1/Access | Loaded intel: 103 machine locations 16855 | -1/Access | Loaded intel: 70 trap records 16855 | -1/Access | Identified exit to Surface 16855 | -1/Access | Discovered exit to Surface (range 196) 16855 | -1/Access | Identified exit to Command 16855 | -1/Access | Discovered exit to Command (range 88) 16855 | -1/Access | Delivered the SGEMP Prototype to Zhirov 16855 | -1/Access | Zhirov transferred Access data 16968 | -1/Access | Found Prototype Device 17139 | -1/Access | First assault squad dispatched 17148 | -1/Access | Build established: Generator-Ninja 17149 | -1/Access | Zhirov warped through subspace 17339 | -1/Access | Entered Command 17677 | -1/Command | Spotted M Guard 17677 | -1/Command | Spotted M Guard 17698 | -1/Command | Spotted Combat Programmer 17713 | -1/Command | Spotted Combat Programmer 17809 | -1/Command | 0b10 Conduit disabled 17809 | -1/Command | Met MAIN.C 17869 | -1/Command | System corruption reached 10% 17874 | -1/Command | Destroyed MAIN.C Shell 17876 | -1/Command | MAIN.C activated Command garrisons 17882 | -1/Command | Zhirov used SGEMP to disable MAIN.C 17909 | -1/Command | Lost 16 parts (2p7n5u2w) 18107 | -1/Command | Build established: Mutant 18260 | -1/Command | Found Prototype Slashing Weapon 18292 | -1/Command | Identified Centrium Greatsword 18418 | -1/Command | Phase Generator disabled 18874 | -1/Command | Discovered exit to Surface (range 14) 18949 | -1/Command | Found Prototype Ballistic Gun 18949 | -1/Command | Identified Multirail 19255 | -1/Command | Build established: Generator-Assassin 20226 | -1/Command | Found Prototype Processor 20229 | -1/Command | Identified Exp. Target Analyzer 20300 | -1/Command | Found Prototype Device 20300 | -1/Command | Identified Exp. ECM Suite 20359 | -1/Command | Found Prototype Processor 20371 | -1/Command | Identified Exp. Core Analyzer 20391 | -1/Command | Found Prototype Device 20391 | -1/Command | Identified Adv. Kinecellerator 20450 | -1/Command | Found Adv. Kinecellerator 20601 | -1/Command | Build established: Scavenger-Mutant 20651 | -1/Command | Found Prototype Special Weapon 20651 | -1/Command | Identified Exp. Remote Datajack 20661 | -1/Command | Found Prototype Device 20661 | -1/Command | Identified Exp. Focal Shield 20758 | -1/Command | Found Prototype Ballistic Cannon 20758 | -1/Command | Identified Omega Cannon 20784 | -1/Command | Found Prototype Protection 20784 | -1/Command | Identified Exp. Powered Armor 20790 | -1/Command | Found Prototype Device 20790 | -1/Command | Identified Beam Splitter 20798 | -1/Command | Found Prototype Reactor 20798 | -1/Command | Identified Zero-point Reactor 20833 | -1/Command | Discovered exit to Surface (range 28) 21939 | -1/Command | Found Prototype Slashing Weapon 21941 | -1/Command | Identified Molecular Scythe 22082 | -1/Command | Found Prototype Energy Cannon 22082 | -1/Command | Identified Cld. Nova Cannon 22146 | -1/Command | Found Prototype Protection 22148 | -1/Command | Found Prototype Processor 22162 | -1/Command | Identified Centrium Heavy Armor Plating 22174 | -1/Command | Identified Exp. Melee Analysis Suite 22822 | -1/Command | Found Prototype Device 22822 | -1/Command | Identified AEGIS Remote Shield 22902 | -1/Command | All MAIN.C guards destroyed 22907 | -1/Command | Found Prototype Launcher 22907 | -1/Command | Identified Hellfire Missile Launcher 22911 | -1/Command | Found Prototype Launcher 22911 | -1/Command | Identified Ragnarok Missile Launcher 22917 | -1/Command | Found Prototype Device 22917 | -1/Command | Identified Thermal Barrier 22929 | -1/Command | Found Zero-point Reactor 22937 | -1/Command | Found Zero-point Reactor 22940 | -1/Command | Found Zero-point Reactor 22943 | -1/Command | Found Prototype Protection 22943 | -1/Command | Identified Hvy. Regenerative Plating 24178 | -1/Command | Found Hvy. Regenerative Plating 24236 | -1/Command | Found Prototype Device 24236 | -1/Command | Identified Exp. Shock Absorption System 24336 | -1/Command | Found Vortex Chain Reactor 24350 | -1/Command | Found Vortex Chain Reactor 24352 | -1/Command | Found Adv. Kinecellerator 24357 | -1/Command | Found Beam Splitter 24575 | -1/Command | Found Exp. Targeting Computer 24587 | -1/Command | Found Exp. Powered Armor 27582 | -1/Command | Found Multirail 27588 | -1/Command | Found Multirail 27618 | -1/Command | Found Multirail 27622 | -1/Command | Found Multirail 27881 | -1/Command | Found Exp. Targeting Computer 27899 | -1/Command | Found Adv. Kinecellerator 28973 | -1/Command | Found Exp. Targeting Computer 29070 | -1/Command | Build established: Generator-Gunner 29165 | -1/Command | Found Exp. Targeting Computer 29175 | -1/Command | Found Exp. Targeting Computer 29512 | -1/Command | Build established: Scavenger-Gunner 32059 | -1/Command | Identified Transdimensional Reconstructor 32059 | -1/Command | Warped through subspace to slip node 32059 | -1/Command | Discovered new exit (range 4) 32071 | -1/Command | Entered Access_0 32074 | -1/Access_0 | Met Architect 32086 | -1/Access_0 | Architect warped through subspace 32100 | -1/Access_0 | Destroyed A8 32129 | -1/Access_0 | Architect warped through subspace 32143 | -1/Access_0 | Found Exp. Targeting Computer 32153 | -1/Access_0 | Found Prototype Device 32154 | -1/Access_0 | Identified Desublimator 32167 | -1/Access_0 | Architect warped through subspace 32208 | -1/Access_0 | Architect warped through subspace 32241 | -1/Access_0 | Architect warped through subspace 32274 | -1/Access_0 | Architect warped through subspace 32305 | -1/Access_0 | Architect warped through subspace 32334 | -1/Access_0 | Architect warped through subspace 32367 | -1/Access_0 | Architect warped through subspace 32403 | -1/Access_0 | Architect warped through subspace 32413 | -1/Access_0 | A6 warped into view 32433 | -1/Access_0 | Destroyed A6 32439 | -1/Access_0 | Architect warped through subspace 32480 | -1/Access_0 | Architect warped through subspace 32517 | -1/Access_0 | Architect warped through subspace 32547 | -1/Access_0 | Architect warped through subspace 32575 | -1/Access_0 | Architect warped through subspace 32601 | -1/Access_0 | Architect warped through subspace 32653 | -1/Access_0 | Architect warped through subspace 32680 | -1/Access_0 | Architect warped through subspace 32690 | -1/Access_0 | Subspace Access Node disabled 32710 | -1/Access_0 | Architect warped through subspace 32749 | -1/Access_0 | Architect warped through subspace 32774 | -1/Access_0 | Architect warped through subspace 32799 | -1/Access_0 | Architect warped through subspace 32804 | -1/Access_0 | Destroyed 7 combat bots 32812 | -1/Access_0 | Architect warped through subspace 32825 | -1/Access_0 | Subspace Access Node disabled 32842 | -1/Access_0 | Architect warped through subspace 32845 | -1/Access_0 | Found Exp. Targeting Computer 32870 | -1/Access_0 | Architect warped through subspace 32903 | -1/Access_0 | Architect warped through subspace 32917 | -1/Access_0 | Subspace Access Node disabled 32931 | -1/Access_0 | Architect warped through subspace 32952 | -1/Access_0 | Architect warped through subspace 32976 | -1/Access_0 | Architect warped through subspace 32999 | -1/Access_0 | Architect warped through subspace 33022 | -1/Access_0 | Architect warped through subspace 33036 | -1/Access_0 | Architect warped through subspace 33051 | -1/Access_0 | Architect warped through subspace 33056 | -1/Access_0 | A5 warped into view 33064 | -1/Access_0 | Architect warped through subspace 33075 | -1/Access_0 | Destroyed A5 33101 | -1/Access_0 | Architect warped through subspace 33143 | -1/Access_0 | Architect warped through subspace 33157 | -1/Access_0 | Subspace Access Node disabled 33220 | -1/Access_0 | Lost 5 parts (1p2n2u) 33339 | -1/Access_0 | Lost 3 parts (1u2w) 33394 | -1/Access_0 | Core integrity fell below 50% 33398 | -1/Access_0 | Lost 3 parts (1n1u1w) 33433 | -1/Access_0 | Destroyed Architect 33434 | -1/Access_0 | Architect triggered a singularity event 33435 | -1/Access_0 | Released all parts (16) 33436 | -1/Access_0 | Extracted unknown sensor trigger ID from Architect's data core 33437 | -1/Access_0 | Found Alien Artifact 33437 | -1/Access_0 | Identified Hpw. Transdimensional Reconstructor 33437 | -1/Access_0 | Warped through subspace to slip node 33437 | -1/Access_0 | Discovered exit to Surface (range 8) 33442 | *** | Escaped singularity! Last Messages --------------- 33435_ Released Exp. Targeting Computer. 33435_ Released Vortex Chain Reactor. 33435_ Released Exp. Biometal Heavy Treads. 33435_ Released Hyp. Linear Accelerator. 33435_ Released Exp. Matter Compressor. 33435_ Released Hvy. Flak Cannon. 33435_ Released Multirail. 33435_ Released Exp. Powered Armor. 33436_ A0_COM: 9. 33436_ Acquired data core, extracted unknown sensor trigger ID. 33437_ A0_COM: 8. 33437_ Acquired Alien Artifact. 33437_ Identified Hpw. Transdimensional Reconstructor. 33437_ Warped through subspace, drawn to slip node. 33437_ EXIT=FOUND: SURFACE 33438_ A0_COM: 7. 33439_ A0_COM: 6. 33440_ A0_COM: 5. 33441_ A0_COM: 4. 33442_ A0_COM: 3. Map ----- +----------------------------------------------------+ | | | | | | | | | | | | | | | | | | | | | | | | | | | | | | | | | ?????????????????????????????????????????????????? | | ?????????????????????????????????????????????????? | | ?????????????????????????????????????????????????? | | ?????????????????????????????????????????????????? | | ?????????????????????????????????????????????????? | | ?????????????????????????????????????????????????? | | ????????????????????????###??????????????????????? | | ???????????????????????## ##?????????????????????? | | ???????????????????????# #?????????????????????? | | ???????????????????????# @ #?????????????????????? | | ??????????????????????## #?????????????????????? | | ??????????????????????# #?????????????????????? | | ??????????????????????# ##?????????????????????? | | ??????????????????????## #?????????????????????? | | ??????????????????????# #?????????????????????? | | ??????????????????????# ##?????????????????????? | | ??????????????????????# < #?????????????????????? | | ??????????????????????# ##?????????????????????? | | ??????????????????????## #??????????????????????? | | ???????????????????????####??????????????????????? | | ?????????????????????????????????????????????????? | | ?????????????????????????????????????????????????? | | ?????????????????????????????????????????????????? | | ?????????????????????????????????????????????????? | | ?????????????????????????????????????????????????? | | ?????????????????????????????????????????????????? | | ?????????????????????????????????????????????????? | | ?????????????????????????????????????????????????? | | ?????????????????????????????????????????????????? | | ?????????????????????????????????????????????????? | | ?????????????????????????????????????????????????? | | ?????????????????????????????????????????????????? | | ?????????????????????????????????????????????????? | | ?????????????????????????????????????????????????? | +----------------------------------------------------+ Best States ------------- Heat Dissipation 90 Energy Generation 93 Energy Capacity 1020 Matter Stores 800 Matter Capacity 800 Sight Range 23 Robot Scan Range 20 Terrain Scan Range 30 Terrain Scan Density 410 Jamming Range 22 Armor Coverage 2000 Utility Shielding 66 Weapon Cycling 25 Melee Speed Boost 30 Evasion (%) 72 Targeting Accuracy 36 Melee Accuracy 6 Launcher Accuracy 30 Target Analysis 10 Core Analysis 15 Armor Integrity Analysis 45 Recoil Reduction 6 Kinecelleration 50 Offensive Hacking 10 Item Schematics ----------------- Hcp. Storage Unit | -10/Materials | Hacked Huge Storage Unit | -9/Mines | Hacked Combat Drone Bay | -7/Data Miner | Free Lgt. Regenerative Plating | -7/Data Miner | Free Triangulator | -7/Data Miner | Free Exp. Sensor Array | -7/Data Miner | Free Exp. Terrain Scanner | -7/Data Miner | Free Exp. Transmission Jammer | -7/Data Miner | Free Cloaking Device | -7/Data Miner | Free Plasma Sword | -7/Data Miner | Free Riot Gun | -6/Zion | Free Flamer | -6/Zion | Free Phasing Sabre | -6/Zion | Free Assault Drone Bay | -4/Zhirov | Free Exp. Heat Sink | -4/Zhirov | Free Exp. Optical Array | -4/Zhirov | Free Imp. Arc Thrower | -4/Zhirov | Free Robot Schematics ------------------ S-27 Virus | -7/Data Miner | Free G-50 Soldier | -7/Data Miner | Free L-41 Fighter | -7/Data Miner | Free X-72 Disruptor | -7/Data Miner | Free P-70 Sage | -7/Data Miner | Free I-36 Angel | -7/Data Miner | Free B-60 Warrior | -4/Factory | Downloaded Fabricated ------------ Exp. Terrain Scanner | x1 | -5/Factory Exp. Sensor Array | x1 | -5/Factory Exp. Transmission Jammer | x1 | -4/Factory Alien Tech Used ----------------- Core Expander Dimensional Node Initializer Integrated Reactor Transdimensional Reconstructor High-powered Transdimensional Reconstructor Achievements -------------- Sorry Old Pal Challenges ------------ None Game ------ Seed NeutralizingCooledShielding Manual? 0 Play Time 06:25:59 Cumulative 361.3 hours Start 2021.05.17 @ 17:27:30 End 2021.05.19 @ 18:03:54 Sessions 5 Manual Loads 0 Difficulty Rogue Special Mode None Game No. 131 Rogue 130 Adventurer 1 Explorer 0 Win Type 6 Total 18 Types 7/3/3/1/0/0/4/0/0 Lore% 92 Gallery% 91 Achievement% 77 Wizard Run 0 Options --------- ASCII 1 Keyboard 1 Movement Numpad Keybinds 0 Fullscreen 0 Font 18/Smallcaps Map View 76x50 Tactical HUD 1 Map Filters NONE Filters NONE Steam 1 RUN: 4b5861c7-605e-43d2-af1d-b3242cb86683